bitfinex/quotes_ETHUSD_20250603
["timestamp","ask_amount","ask_price","bid_price","bid_amount"]
[1748953962077,3.911,2606.7,2606.6,2.91513016]
[1748953964570,0.02,2606.9,2606.6,2.91513016]
[1748953964775,3.911,2606.7,2606.6,2.91513016]
[1748953965267,3.911,2606.7,2606.2,11.83695142]
[1748953965568,3.911,2606.7,2606.6,2.91513016]
[1748953971944,3.83647558,2606.6,2606.5,10.91513016]
[1748953972674,3.83662792,2606.5,2606.4,8.0]
[1748953972848,3.83667027,2606.5,2606.3,2.91513016]
[1748953973079,3.91,2606.4,2606.3,2.91513016]
[1748953973437,3.83667027,2606.5,2606.3,2.91513016]
[1748953973638,3.83641525,2606.6,2606.3,2.91513016]
[1748953973639,3.91,2606.4,2606.3,2.91513016]
[1748953973838,3.91,2606.4,2606.3,10.91513016]
[1748953976841,4.61913273,2606.9,2606.4,11.83662512]
[1748953977171,3.91,2606.8,2606.4,3.83666178]
[1748953978183,3.91,2606.8,2606.7,2.91513016]
[1748953979283,4.63295109,2606.7,2606.6,2.91513016]
[1748953980480,3.83644883,2606.6,2606.2,8.0]
[1748953980782,3.83641525,2606.6,2606.5,10.91513016]
[1748953980983,8.59333758,2606.6,2606.5,10.91513016]
[1748953981350,4.75692233,2606.6,2606.5,10.91513016]
[1748953981550,8.59333758,2606.6,2606.5,10.91513016]
[1748953981986,4.75692233,2606.6,2606.5,10.91513016]
[1748953982484,4.63295069,2606.7,2606.5,10.91513016]
[1748953982781,3.91,2606.6,2606.5,10.91513016]
[1748953983279,0.7966,2606.7,2606.5,10.91513016]
[1748953983478,3.91,2606.6,2606.5,10.91513016]
[1748953983845,0.02,2606.9,2606.7,3.83620859]
[1748953984045,3.93,2606.9,2606.8,2.91513016]
[1748953984695,0.02,2606.9,2606.8,2.91513016]
[1748953984901,3.93,2606.9,2606.8,2.91513016]
[1748953986361,3.8363596,2606.7,2606.6,10.91513016]
[1748953986711,3.8363596,2606.7,2606.3,2.91513016]
[1748953986712,3.83664523,2606.5,2606.3,2.91513016]
[1748953986867,7.74664523,2606.5,2606.4,8.0]
[1748953988585,3.91,2606.5,2606.4,8.0]
[1748953988782,4.64790963,2606.4,2606.3,2.91513016]
[1748953989828,7.74662234,2606.5,2606.3,2.91513016]
[1748953990339,3.91,2606.4,2606.3,2.91513016]
[1748953991920,7.74670963,2606.4,2606.3,2.91513016]
[1748953992130,3.91,2606.4,2606.3,2.91513016]
[1748953992798,7.74670963,2606.4,2606.3,2.91513016]
[1748953994035,3.91,2606.4,2606.3,2.91513016]
[1748953994432,0.7705,2606.9,2606.4,8.0]
[1748953994618,4.60655233,2606.9,2606.8,2.91513016]
[1748953994824,8.51655233,2606.9,2606.8,2.91513016]
[1748953996345,4.60655233,2606.9,2606.8,2.91513016]
[1748953996575,8.51555233,2606.9,2606.8,2.91513016]
[1748953996762,0.02,2606.9,2606.8,2.91513016]
[1748953996910,0.02,2606.9,2606.8,6.75125107]
[1748953997759,0.02,2606.9,2606.8,2.91513016]
[1748953998860,3.929,2606.9,2606.8,6.75125107]
[1748953999019,0.02,2606.9,2606.8,6.75125107]
[1748953999527,0.02,2606.9,2606.8,2.91513016]
[1748954004154,0.02,2606.9,2606.8,6.75125107]
[1748954004491,0.02,2606.9,2606.8,14.75125107]
[1748954006185,0.02,2606.9,2606.8,15.12718025]
[1748954011702,7.93,2608.0,2607.0,0.55]
[1748954011859,0.8079,2608.6,2608.5,3.83362085]
[1748954012061,0.02,2608.9,2608.6,8.0]
[1748954012261,0.02,2608.9,2608.8,6.74831016]
[1748954012507,0.02,2608.9,2608.8,14.74831016]
[1748954012842,0.02,2608.9,2608.8,10.91513016]
[1748954012963,0.02,2608.9,2608.8,8.0]
[1748954013162,0.8206,2608.8,2608.5,8.0]
[1748954013410,4.7326,2608.8,2608.7,2.91513016]
[1748954014072,8.56578,2608.8,2608.7,2.91513016]
[1748954014290,9.80765783,2608.8,2608.7,2.91513016]
[1748954014588,3.8334091,2608.7,2608.5,2.91513016]
[1748954014827,3.83347389,2608.6,2608.5,2.91513016]
[1748954014969,9.80765783,2608.8,2607.5,8.0]
[1748954014970,3.83431761,2608.1,2607.5,8.0]
[1748954015160,8.55543788,2608.2,2608.0,8.0]
[1748954015364,5.15294013,2608.1,2608.0,8.0]
[1748954015831,3.914,2608.1,2608.0,8.0]
[1748954015964,7.74820881,2608.1,2608.0,8.0]
[1748954016165,3.83451582,2607.9,2607.8,8.0]
[1748954016367,3.83451582,2607.9,2607.8,10.91513016]
[1748954016629,3.914,2608.1,2607.0,0.3896079]
[1748954016766,3.83538526,2607.3,2606.6,1.013]
[1748954016972,3.83565757,2607.2,2607.1,2.91513016]
[1748954017171,4.7066,2607.4,2606.5,5.92721243]
[1748954017418,3.83615046,2606.8,2606.5,5.92721243]
[1748954017711,3.83608845,2606.9,2606.6,8.0]
[1748954018707,0.7916,2607.4,2606.8,5.92721243]
[1748954018874,7.75346874,2607.3,2607.1,5.92721243]
[1748954019206,3.92,2607.2,2607.1,5.92721243]
[1748954019571,7.75553237,2607.2,2607.1,5.92721243]
[1748954019773,7.75553237,2607.2,2606.8,5.92721243]
[1748954020317,3.83575484,2607.1,2606.8,5.92721243]
[1748954020904,3.83625963,2606.8,2606.5,5.92721243]
[1748954021219,1.15911967,2607.1,2606.5,5.92721243]
[1748954021220,7.75727035,2606.7,2606.6,8.0]
[1748954021370,7.75827035,2606.7,2606.6,8.0]
[1748954022571,3.83685684,2606.3,2606.2,5.92721243]
[1748954022811,3.922,2606.3,2606.1,0.02]
[1748954023121,3.922,2606.3,2606.2,5.92721243]
[1748954023263,3.925,2606.3,2606.2,5.92721243]
[1748954023467,3.83663805,2606.5,2606.2,5.92721243]
[1748954023664,3.925,2606.4,2606.2,5.92721243]
[1748954023891,3.926,2606.3,2606.2,5.92721243]
[1748954024091,0.7903,2606.8,2606.2,17.76421649]
[1748954024295,3.926,2606.7,2606.5,5.92721243]
[1748954024490,4.62650022,2606.8,2606.5,5.92721243]
[1748954024691,3.925,2606.7,2606.5,5.92721243]
[1748954025907,7.761301,2606.7,2606.5,5.92721243]
[1748954026469,3.83641525,2606.6,2606.5,5.92721243]
[1748954029098,7.76241525,2606.6,2606.5,5.92721243]
[1748954031321,3.926,2606.6,2606.1,0.02]
[1748954031532,3.83700406,2606.2,2606.1,0.02]
[1748954031678,7.76400406,2606.2,2606.1,0.02]
[1748954033281,9.37150447,2606.2,2606.1,0.02]
[1748954038107,5.44450447,2606.2,2606.1,0.02]
[1748954038435,9.36850447,2606.2,2606.1,0.02]
[1748954039298,9.36750447,2606.2,2606.1,0.02]
[1748954039499,1.60750041,2606.2,2606.1,0.02]
[1748954039731,9.36750447,2606.2,2606.1,0.02]
[1748954040643,1.8488,2606.5,2606.1,5.94721243]
[1748954040844,7.93,2606.7,2606.4,5.92721243]
[1748954041009,11.857,2606.7,2606.5,3.83648185]
[1748954041217,1.8465,2607.1,2606.5,8.0]
[1748954041433,1.8465,2607.1,2607.0,5.92721243]
[1748954041604,9.61318164,2607.1,2607.0,5.92721243]
[1748954041941,3.83608289,2606.9,2606.7,5.92721243]
[1748954042243,3.83663404,2606.5,2606.3,5.92721243]
[1748954042536,7.76978446,2606.4,2606.1,8.02]
[1748954042898,3.933,2606.4,2606.1,8.02]
[1748954045128,3.83686479,2606.3,2606.1,8.02]
[1748954045336,3.933,2606.4,2606.1,0.02]
[1748954045535,3.83692371,2606.3,2606.1,0.02]
[1748954045843,3.83672398,2606.4,2606.2,5.92721243]
[1748954046029,7.77185684,2606.3,2606.2,5.92721243]
[1748954046447,7.77085684,2606.3,2606.2,5.92721243]
[1748954048342,3.934,2606.3,2606.2,5.92721243]
[1748954048640,3.83633772,2606.7,2606.2,5.92721243]
[1748954048842,7.76842519,2606.6,2606.5,5.92721243]
[1748954050116,3.934,2606.6,2606.5,5.92721243]
[1748954051719,3.934,2606.6,2606.4,5.92721243]
[1748954053550,7.77045632,2606.6,2606.4,5.92721243]
[1748954053852,3.934,2606.6,2606.4,5.92721243]
[1748954056048,3.931,2606.5,2606.4,5.92721243]
[1748954057551,7.76756244,2606.5,2606.4,5.92721243]
[1748954057925,3.931,2606.5,2606.4,5.92721243]
[1748954059344,3.83604579,2606.9,2606.4,9.76384719]
[1748954059747,7.76417771,2606.8,2606.4,5.92721243]
[1748954060312,3.83634193,2606.7,2606.4,5.92721243]
[1748954060923,11.76587166,2607.0,2606.4,5.92721243]
[1748954061162,3.83597376,2606.9,2606.4,5.92721243]
[1748954061342,3.83613325,2606.8,2606.4,5.92721243]
[1748954061871,7.76203717,2606.9,2606.4,9.76390638]
[1748954062148,7.76212902,2606.8,2606.4,5.92721243]
[1748954062446,4.43626844,2606.7,2606.4,5.92721243]
[1748954062650,3.83667427,2606.5,2606.1,13.94721243]
[1748954062849,7.76165175,2606.5,2606.1,13.94721243]
[1748954063357,7.76162273,2606.5,2606.1,13.94721243]
[1748954063924,3.925,2606.5,2606.1,17.78428688]
[1748954064125,3.925,2606.4,2606.1,17.78428688]
[1748954064641,3.925,2606.4,2606.3,8.0]
[1748954065237,3.925,2606.4,2606.2,3.83698484]
[1748954065238,3.925,2606.4,2606.2,8.0]
[1748954065550,13.95422674,2607.0,2606.3,3.83675545]
[1748954065720,3.83612785,2606.8,2606.5,5.92721243]
[1748954066214,3.83627383,2606.7,2606.5,5.92721243]
[1748954066417,3.925,2606.6,2606.5,5.92721243]
[1748954067527,0.8005,2606.5,2606.2,5.92721243]
[1748954067732,0.8005,2606.5,2606.1,0.02]
[1748954067733,5.10968662,2606.5,2606.1,5.94721243]
[1748954067927,3.83672917,2606.4,2606.1,5.94721243]
[1748954068224,3.925,2606.3,2606.1,5.94721243]
[1748954068421,7.76189664,2606.3,2606.1,5.94721243]
[1748954068747,3.83700406,2606.2,2606.1,0.02]
[1748954069174,4.63460406,2606.2,2606.1,0.02]
[1748954069458,5.97685083,2606.2,2606.1,0.02]
[1748954069633,6.57685083,2606.2,2606.1,0.02]
[1748954073898,6.57685083,2606.2,2606.1,0.02]
[1748954074180,7.12685083,2606.2,2606.1,0.02]
[1748954074484,15.05685083,2606.2,2606.1,0.02]
[1748954075844,20.01085083,2606.2,2606.1,0.02]
[1748954077339,15.53285083,2606.2,2606.1,0.02]
[1748954077539,18.43685083,2606.2,2606.1,0.02]
[1748954078151,18.98685083,2606.2,2606.1,0.02]
[1748954086367,18.98185083,2606.2,2606.1,0.02]
[1748954087965,26.98185083,2606.2,2606.1,0.02]
[1748954088363,4.66097689,2605.2,2605.1,0.02]
[1748954088567,9.13597689,2605.2,2605.1,0.02]
[1748954089001,17.13597689,2605.2,2605.1,0.02]
[1748954089816,9.13697689,2605.2,2605.1,0.02]
[1748954090315,5.21097689,2605.2,2605.1,0.02]
[1748954090526,5.5659107,2605.2,2605.1,0.02]
[1748954090722,10.5169107,2605.2,2605.1,0.02]
[1748954093000,10.5149107,2605.2,2605.1,0.02]
[1748954095805,3.83920442,2604.8,2604.2,9.76708655]
[1748954096005,10.5149107,2605.2,2604.3,3.83970158]
[1748954096006,3.922,2604.7,2604.3,3.83970158]
[1748954096606,3.83907921,2604.8,2604.3,3.83970158]
[1748954096834,3.922,2604.6,2604.3,3.83978937]
[1748954097046,3.922,2604.6,2604.2,9.76708815]
[1748954098471,7.76144392,2604.6,2604.2,5.92721243]
[1748954098646,3.83952147,2604.5,2604.1,0.02]
[1748954099210,3.83995084,2604.2,2604.1,0.02]
[1748954101839,4.43995084,2604.2,2604.1,0.02]
[1748954105049,12.36995084,2604.2,2604.1,0.02]
[1748954105506,16.30195084,2604.2,2604.1,0.02]
[1748954105708,12.462,2604.2,2604.1,0.02]
[1748954105953,16.30195084,2604.2,2604.1,0.02]
[1748954106461,16.30195084,2604.2,2604.1,3.8600983]
[1748954106462,0.6,2604.2,2604.1,3.8600983]
[1748954106670,3.934,2604.4,2604.1,3.8600983]
[1748954107449,3.934,2604.4,2604.1,0.02]
[1748954107962,3.934,2604.4,2604.1,3.86007633]
[1748954109304,11.76942134,2604.6,2604.1,3.86007633]
[1748954109305,7.93,2604.6,2604.2,3.8399344]
[1748954109643,3.933,2604.5,2604.1,3.86001432]
[1748954110011,7.77255717,2604.5,2604.1,0.02]
[1748954110640,3.933,2604.5,2604.2,3.83994878]
[1748954110846,7.93,2604.6,2604.4,3.83963425]
[1748954111160,3.932,2604.5,2604.3,9.7669468]
[1748954111527,3.932,2604.5,2604.4,3.83963913]
[1748954111938,3.932,2604.5,2604.3,9.7669502]
[1748954112137,11.76897544,2604.9,2604.4,3.83963456]
[1748954112342,3.932,2604.8,2604.4,3.83963456]
[1748954112550,0.6,2604.6,2604.4,3.83963456]
[1748954112935,0.6,2604.6,2604.3,9.76693703]
[1748954113551,4.531,2604.6,2604.3,9.76693929]
[1748954114108,4.531,2604.6,2604.3,5.92721243]
[1748954114109,0.6,2604.6,2604.3,5.92721243]
[1748954114304,4.53,2604.6,2604.3,5.92721243]
[1748954115511,4.53,2604.6,2604.3,9.76692998]
[1748954117252,4.53,2604.6,2604.4,2.9158257]
[1748954118514,3.927,2604.5,2604.4,6.75544958]
[1748954118750,3.927,2604.5,2604.4,2.9158257]
[1748954119554,0.6,2604.6,2604.4,2.9158257]
[1748954119740,3.926,2604.5,2604.4,2.9158257]
[1748954120315,3.925,2604.5,2604.4,2.9158257]
[1748954122753,3.925,2604.5,2604.2,3.83990232]
[1748954123078,3.925,2604.5,2604.3,6.75560464]
[1748954123463,0.6,2604.6,2604.3,6.75560464]
[1748954123636,3.925,2604.4,2604.3,3.83977894]
[1748954123837,3.925,2604.4,2604.3,6.75560464]
[1748954124458,3.925,2604.4,2604.3,2.9158257]
[1748954125370,0.6,2604.6,2604.5,3.83950854]
[1748954125664,3.926,2604.8,2604.6,3.83928072]
[1748954125867,3.926,2604.8,2604.7,6.75503942]
[1748954126172,3.926,2604.8,2604.7,2.9158257]
[1748954126350,3.926,2604.8,2604.7,6.75503942]
[1748954127172,3.926,2604.8,2604.5,6.75531795]
[1748954127463,3.926,2604.8,2604.5,6.7553249]
[1748954127851,3.926,2604.8,2604.6,3.83934792]
[1748954128164,8.7058,2605.3,2604.7,6.75498367]
[1748954128370,3.925,2605.2,2604.9,3.83881913]
[1748954128563,3.925,2605.2,2605.0,2.9158257]
[1748954129064,3.925,2605.2,2604.8,2.9158257]
[1748954129440,3.925,2605.2,2604.8,6.75487595]
[1748954129767,8.7058,2605.3,2604.9,3.83891529]
[1748954130154,3.924,2605.2,2605.0,2.9158257]
[1748954131072,3.51700227,2605.2,2605.0,2.9158257]
[1748954131974,0.6,2605.1,2605.0,2.9158257]
[1748954132634,0.6,2605.1,2605.0,6.75459729]
[1748954135181,0.6,2605.1,2605.0,2.9158257]
[1748954135680,0.6,2605.1,2604.3,2.9158257]
[1748954135841,3.83904728,2604.9,2604.3,3.83974117]
[1748954136041,3.924,2604.8,2604.3,6.75556687]
[1748954136235,7.76308463,2604.8,2604.3,6.75550161]
[1748954136464,0.825,2604.7,2604.3,2.9158257]
[1748954136664,4.66422991,2604.7,2604.3,2.9158257]
[1748954136869,0.825,2604.7,2604.3,6.75560019]
[1748954137643,4.66428653,2604.7,2604.3,2.9158257]
[1748954138393,4.66428653,2604.7,2604.2,3.83993343]
[1748954138558,2.06772723,2604.7,2604.1,6.77591683]
[1748954138746,5.90696195,2604.7,2604.3,2.9158257]
[1748954141159,2.06772723,2604.7,2604.3,6.75559453]
[1748954141356,4.86383277,2605.0,2604.5,2.9158257]
[1748954141357,0.7604,2605.0,2604.5,2.9158257]
[1748954141575,3.922,2604.9,2604.7,2.9158257]
[1748954141747,0.7604,2605.0,2604.7,2.9158257]
[1748954141950,0.6,2605.1,2604.9,6.75461519]
[1748954142148,7.93,2605.3,2604.9,2.9158257]
[1748954142354,3.927,2605.3,2605.2,2.9158257]
[1748954143156,3.927,2605.3,2605.0,2.9158257]
[1748954143489,3.927,2605.3,2605.0,6.75459335]
[1748954143854,3.927,2605.3,2605.2,2.9158257]
[1748954150596,3.83812396,2605.5,2605.2,2.9158257]
[1748954150796,3.92,2605.4,2605.2,2.9158257]
[1748954151386,7.75818292,2605.4,2605.2,2.9158257]
[1748954151729,7.75826549,2605.4,2605.2,2.9158257]
[1748954152426,3.92,2605.4,2605.2,2.9158257]
[1748954153014,7.75820462,2605.4,2605.2,2.9158257]
[1748954153211,5.15876961,2605.4,2605.0,2.9158257]
[1748954153529,3.83838999,2605.3,2605.0,2.9158257]
[1748954154226,3.92,2605.4,2605.0,6.75458833]
[1748954154400,7.75819815,2605.4,2605.0,2.9158257]
[1748954154796,7.75825373,2605.4,2605.0,2.9158257]
[1748954155004,3.92,2605.4,2605.2,2.9158257]
[1748954155535,7.75820694,2605.4,2605.2,2.9158257]
[1748954159136,3.83832955,2605.3,2605.0,2.9158257]
[1748954159740,3.83854422,2605.2,2604.7,6.75496045]
[1748954159891,3.915,2605.1,2604.7,6.75496045]
[1748954160404,3.83883387,2605.0,2604.7,2.9158257]
[1748954160637,3.915,2605.1,2604.7,6.75499845]
[1748954161690,4.63569895,2605.3,2604.9,2.9158257]
[1748954161891,3.915,2605.2,2604.9,2.9158257]
[1748954162510,3.915,2605.2,2605.1,2.9158257]
[1748954163998,7.75347689,2605.2,2604.9,2.9158257]
[1748954164213,3.83877159,2605.0,2604.9,2.9158257]
[1748954164634,3.83867264,2605.1,2604.9,2.9158257]
[1748954165004,8.71053426,2605.2,2604.9,2.9158257]
[1748954165409,3.83868319,2605.1,2604.9,2.9158257]
[1748954165643,3.83877159,2605.0,2604.9,2.9158257]
[1748954166100,3.83877159,2605.0,2604.7,2.9158257]
[1748954166305,3.915,2604.9,2604.7,2.9158257]
[1748954166699,7.75394169,2604.9,2604.7,2.9158257]
[1748954166935,3.915,2604.9,2604.7,2.9158257]
[1748954167238,4.7254,2604.9,2604.7,2.9158257]
[1748954167450,4.7254,2604.9,2604.1,3.8600613]
[1748954167451,9.72362472,2604.9,2604.4,2.9158257]
[1748954167733,3.83912464,2604.8,2604.4,2.9158257]
[1748954168108,9.72363814,2604.9,2604.4,6.75541023]
[1748954168309,5.88465378,2604.9,2604.6,2.9158257]
[1748954168554,1.15925378,2604.9,2604.8,2.9158257]
[1748954168734,5.07425378,2604.9,2604.8,2.9158257]
[1748954169947,3.915,2604.9,2604.8,2.9158257]
[1748954170117,7.75397884,2604.9,2604.6,2.9158257]
[1748954170741,3.83908355,2604.8,2604.6,2.9158257]
[1748954171232,7.75397732,2604.9,2604.6,2.9158257]
[1748954173359,3.83907425,2604.8,2604.6,2.9158257]
[1748954173661,3.915,2604.7,2604.6,2.9158257]
[1748954175515,7.75421372,2604.7,2604.4,2.9158257]
[1748954176081,7.75433466,2604.7,2604.3,2.9158257]
[1748954176276,3.8393861,2604.6,2604.3,2.9158257]
[1748954177350,9.71193856,2604.7,2604.5,2.9158257]
[1748954178595,5.87264513,2604.7,2604.5,2.9158257]
[1748954178737,5.07434513,2604.7,2604.5,2.9158257]
[1748954180091,1.15934513,2604.7,2604.5,2.9158257]
[1748954180296,3.915,2604.6,2604.5,2.9158257]
[1748954180581,3.915,2604.7,2604.5,6.75533424]
[1748954180883,3.915,2604.7,2604.6,2.9158257]
[1748954181183,3.915,2604.7,2604.6,6.75518683]
[1748954181389,3.83888493,2605.0,2604.6,2.9158257]
[1748954181671,9.39002455,2604.9,2604.6,2.9158257]
[1748954182385,7.75398312,2604.9,2604.6,2.9158257]
[1748954182682,0.6,2604.7,2604.6,2.9158257]
[1748954183837,3.83938283,2604.6,2604.4,2.9158257]
[1748954184042,7.75438283,2604.6,2604.4,2.9158257]
[1748954184485,3.915,2604.6,2604.4,2.9158257]
[1748954184693,7.75437517,2604.6,2604.4,2.9158257]
[1748954184893,5.21458424,2604.6,2604.4,2.9158257]
[1748954185050,5.21458424,2604.6,2604.1,0.02]
[1748954185379,0.8023,2604.2,2604.1,0.02]
[1748954185563,4.7173,2604.2,2604.1,0.02]
[1748954185976,8.55725084,2604.2,2604.1,0.02]
[1748954188495,3.8397282,2604.4,2604.1,0.02]
[1748954188796,0.7809,2604.5,2604.2,2.9158257]
[1748954188997,0.6,2604.7,2604.4,2.9158257]
[1748954189205,0.6,2604.7,2604.6,2.9158257]
[1748954189361,3.915,2604.7,2604.6,6.75505199]
[1748954190253,7.93,2604.9,2604.6,6.75505199]
[1748954190470,3.915,2604.8,2604.6,6.75505199]
[1748954190667,3.915,2604.8,2604.6,2.9158257]
[1748954191100,3.915,2604.8,2604.6,6.75512018]
[1748954191451,3.915,2604.8,2604.6,2.9158257]
[1748954191693,3.915,2604.7,2604.6,6.75518167]
[1748954192366,3.915,2604.7,2604.6,2.9158257]
[1748954192998,3.915,2604.7,2604.4,6.75541541]
[1748954193237,7.75429222,2604.7,2604.2,6.75566241]
[1748954193385,7.75429222,2604.7,2604.3,3.83978844]
[1748954193386,3.915,2604.7,2604.3,3.83978844]
[1748954193920,3.915,2604.7,2604.4,6.75537699]
[1748954194087,7.93,2604.9,2604.5,3.83949528]
[1748954194267,7.93,2604.9,2604.6,6.75515145]
[1748954194487,11.845,2604.9,2604.8,6.75489203]
[1748954195067,11.845,2604.9,2604.8,2.9158257]
[1748954198657,11.845,2604.9,2604.8,6.75489203]
[1748954198818,7.93,2604.9,2604.8,6.75489203]
[1748954199021,11.845,2604.9,2604.8,6.75489203]
[1748954199220,11.845,2604.9,2604.5,3.83946399]
[1748954199419,11.845,2604.9,2604.7,3.83920747]
[1748954199740,3.915,2604.9,2604.7,3.83920747]
[1748954200341,3.83856273,2605.2,2604.7,3.83920747]
[1748954200507,8.60387184,2605.1,2604.7,2.9158257]
[1748954200714,8.60387184,2605.1,2604.6,3.83926585]
[1748954201127,3.83894946,2604.9,2604.5,2.9158257]
[1748954201312,7.75406922,2604.8,2604.4,3.83959782]
[1748954201518,3.83921372,2604.7,2604.1,2.9358257]
[1748954201815,3.83951208,2604.5,2604.1,6.77582935]
[1748954202064,4.62911208,2604.5,2604.1,6.77582935]
[1748954202706,0.7896,2604.5,2604.1,6.77582935]
[1748954202904,4.62918437,2604.5,2604.1,0.02]
[1748954203103,0.6,2604.3,2604.1,0.02]
[1748954203330,3.915,2604.2,2604.1,0.02]
[1748954205472,3.915,2604.2,2604.1,3.8600983]
[1748954205671,3.915,2604.2,2604.1,0.02]
[1748954210385,3.915,2604.2,2604.1,3.8600983]
[1748954210587,3.915,2604.2,2604.1,0.02]
[1748954210948,3.915,2604.2,2604.1,3.8600983]
[1748954212183,0.6,2604.3,2604.1,3.8600983]
[1748954212385,0.6,2604.3,2604.2,6.75577654]
[1748954212588,7.93,2605.5,2604.7,3.83921372]
[1748954212772,3.915,2604.9,2604.8,3.83899257]
[1748954213084,0.7676,2605.2,2604.9,3.83890999]
[1748954213247,3.915,2605.1,2604.9,3.83890999]
[1748954213458,3.915,2605.0,2604.8,3.83898794]
[1748954213664,3.915,2605.0,2604.9,2.9158257]
[1748954217970,3.915,2605.0,2603.9,3.84031551]
[1748954217971,3.83900386,2604.9,2603.9,3.84031551]
[1748954218175,3.83927841,2604.7,2604.3,8.0]
[1748954218384,7.75427841,2604.7,2604.2,6.75571138]
[1748954218583,3.915,2604.7,2604.3,3.83974462]
[1748954218833,7.75421789,2604.7,2604.2,6.75570003]
[1748954219142,7.75421789,2604.7,2604.3,3.83978917]
[1748954219436,8.99122625,2604.7,2604.3,3.83978917]
[1748954219981,8.99122625,2604.7,2604.2,6.7557139]
[1748954220183,8.99122625,2604.7,2604.3,3.83977931]
[1748954220380,2.10360138,2605.0,2604.6,2.9158257]
[1748954220629,7.75392227,2604.9,2604.6,2.9158257]
[1748954221294,3.915,2604.9,2604.6,6.75517718]
[1748954222425,3.915,2604.9,2604.6,2.9158257]
[1748954223307,0.5,2604.7,2604.6,2.9158257]
[1748954224537,0.5,2604.7,2604.6,6.75518683]
[1748954225905,3.83853708,2605.2,2604.6,6.75518683]
[1748954225906,0.45884408,2606.0,2604.6,2.9158257]
[1748954226109,0.7828,2606.1,2605.7,2.9158257]
[1748954226434,0.7828,2606.1,2605.7,6.75354199]
[1748954226635,8.56302145,2606.1,2605.5,6.75374803]
[1748954226930,0.85630215,2606.0,2605.5,6.75374803]
[1748954227135,4.69361215,2606.0,2605.3,3.83830288]
[1748954227303,7.78054053,2605.9,2605.4,3.83815883]
[1748954228003,3.943,2605.8,2605.5,3.83801043]
[1748954228203,0.3943,2605.7,2605.5,3.83801043]
[1748954230577,0.85630215,2606.0,2605.6,3.83788762]
[1748954230744,3.94,2605.8,2605.6,3.83788762]
[1748954232051,3.94,2605.8,2605.3,6.75412793]
[1748954232259,4.6433758,2605.7,2604.6,4.32389869]
[1748954232479,3.83788762,2605.6,2604.6,8.16324068]
[1748954232780,4.40434876,2605.5,2605.1,3.83860179]
[1748954232972,4.40434876,2605.5,2605.0,2.9158257]
[1748954233431,4.40434876,2605.5,2605.2,3.83840424]
[1748954234442,4.40434876,2605.5,2605.1,3.83854466]
[1748954234849,0.8084,2605.4,2604.6,8.38589869]
[1748954235070,3.83842467,2605.3,2604.8,3.83905819]
[1748954235245,3.83842467,2605.3,2604.8,3.83906633]
[1748954236067,1.24883488,2605.4,2604.7,3.83913632]
[1748954236260,3.83861467,2605.2,2604.7,3.83913632]
[1748954236461,4.70769917,2605.1,2604.7,3.83913632]
[1748954237159,0.8039,2605.0,2604.7,3.83913632]
[1748954238979,0.8039,2605.0,2604.7,3.83912851]
[1748954239179,0.8039,2605.0,2604.6,6.75515649]
[1748954239543,0.8039,2605.0,2604.7,3.83913682]
[1748954240779,0.8039,2605.0,2604.6,6.75513831]
[1748954240983,5.96137525,2605.0,2604.6,6.75513831]
[1748954241182,5.96137069,2605.0,2604.6,3.83931261]
[1748954242059,2.12258288,2605.0,2604.5,2.9158257]
[1748954242262,3.83892811,2604.9,2604.5,2.9158257]
[1748954242584,4.64275222,2605.0,2604.5,6.75530938]
[1748954242746,3.83894483,2604.9,2604.5,6.75530938]
[1748954242947,3.83894483,2604.9,2604.5,2.9158257]
[1748954242948,7.7730943,2604.8,2604.5,2.9158257]
[1748954243178,7.7730943,2604.8,2604.3,10.9158257]
[1748954243179,3.934,2604.8,2604.3,10.9158257]
[1748954243372,3.934,2604.8,2604.4,3.83964893]
[1748954243770,7.77309275,2604.8,2604.4,3.83964893]
[1748954243977,0.8104,2604.6,2604.3,14.7556254]
[1748954244383,0.8104,2604.6,2604.4,3.83964921]
[1748954244686,0.8104,2604.6,2604.3,14.75555309]
[1748954245177,0.8104,2604.6,2604.4,3.83964554]
[1748954245366,5.17559869,2604.8,2604.5,3.83950854]
[1748954245564,5.96729869,2604.8,2604.5,3.83950854]
[1748954245993,5.96729869,2604.8,2604.4,3.83956978]
[1748954246306,5.96729869,2604.8,2604.4,6.75539548]
[1748954247098,9.80636878,2604.8,2604.5,8.0]
[1748954247284,0.98063688,2604.7,2604.5,8.0]
[1748954247986,0.98063688,2604.7,2604.4,2.9158257]
[1748954248207,0.8201,2604.4,2604.1,0.02]
[1748954248513,4.7531,2604.4,2604.1,8.02]
[1748954248816,8.59279149,2604.4,2604.1,0.02]
[1748954249124,4.7531,2604.4,2604.1,0.02]
[1748954249322,4.7531,2604.4,2604.1,3.8600963]
[1748954250666,4.7531,2604.4,2604.1,0.02]
[1748954251111,3.83995084,2604.2,2604.1,0.02]
[1748954251311,4.60485084,2604.2,2604.1,0.02]
[1748954251946,5.15485084,2604.2,2604.1,0.02]
[1748954256128,13.08485084,2604.2,2604.1,0.02]
[1748954259010,16.00067654,2604.2,2604.1,0.02]
[1748954259213,18.37802504,2604.2,2604.1,0.02]
[1748954260340,19.40019934,2604.2,2604.1,0.02]
[1748954260651,19.40119934,2604.2,2604.1,0.02]
[1748954264459,22.31702504,2604.2,2604.1,0.02]
[1748954266240,19.39819934,2604.2,2604.1,0.02]
[1748954272281,30.31402504,2604.2,2604.1,0.02]
[1748954272783,30.68030816,2604.2,2604.1,0.02]
[1748954273076,30.31402504,2604.2,2604.1,0.02]
[1748954273375,28.42319934,2604.2,2604.1,0.02]
[1748954275478,28.78976504,2604.2,2604.1,0.02]
[1748954275876,28.42319934,2604.2,2604.1,0.02]
[1748954276068,28.78976526,2604.2,2604.1,0.02]
[1748954277781,28.42319934,2604.2,2604.1,0.02]
[1748954277984,28.79013606,2604.2,2604.1,0.02]
[1748954278975,28.78913606,2604.2,2604.1,0.02]
[1748954280145,28.78942546,2604.2,2604.1,0.02]
[1748954281182,3.84142593,2603.2,2603.1,0.02]
[1748954281384,21.82912034,2603.2,2603.1,0.02]